Cogmind - Beta 14 @@@ ROGUE MODE // 2024.08.07 @ 11:06:38 Player: omewwes Result: Destroyed by 20-OMN(R) with Subdweller Machine Gun Performance ------------- Evolutions (0) 0 Regions Visited (2) 400 Robots Destroyed (16) 80 Value Destroyed (254) 254 Prototype IDs (2) 40 Alien Tech Used (0) 0 Bonus (0) 0 TOTAL SCORE: 774 Bonus ------- None Cogmind --------- Core Integrity 0/250 Matter 295/300 Energy 48/100 System Corruption 0% Temperature Cool (0) Movement Core (50) Location -10/Subcaves Parts ------- > --- POWER (1) -------- (None) > --- PROPULSION (2) --- (None) > --- UTILITY (2) ------ (None) > --- WEAPON (2) ------- Light Assault Rifle > --- INVENTORY (5) ---- Small Laser Grenade Launcher Peak State ------------ > --- POWER ------------ Light Ion Engine > --- PROPULSION ------- Light Treads Light Treads > --- UTILITY ---------- Seismic Detector Makeshift Kinetic Plating > --- WEAPON ----------- Subdweller Laser Makeshift Laser > --- INVENTORY -------- Ion Engine Light Treads Small Laser Light Assault Rifle Grenade Launcher [Rating: 14] Favorites ----------- Power Ion Engine Engine Ion Engine Propulsion Light Treads Treads Light Treads Utility Small Storage Unit Device Seismic Detector Storage Small Storage Unit Protection Makeshift Kinetic Plating Weapon Light Assault Rifle Energy Gun Small Laser Ballistic Gun Light Assault Rifle Build | -11 -10 -10 ------- Run | Yrd Mat Sub Slots Evolved . | . . . Power . | . . . Propulsion . | . . . Utility . | . . . Weapon . | . . . Parts Attached 16 | 6 2 8 Power 3 | 1 1 1 Engine 3 | 1 1 1 Core . | . . . Reactor . | . . . Propulsion 3 | 2 . 1 Treads 3 | 2 . 1 Leg . | . . . Wheel . | . . . Hover . | . . . Flight . | . . . Utility 3 | 1 . 2 Device 1 | . . 1 Storage 1 | 1 . . Processor . | . . . Hackware . | . . . Protection 1 | . . 1 Artifact . | . . . Weapon 7 | 2 1 4 Energy Gun 4 | . 1 3 Energy Cannon . | . . . Ballistic Gun 3 | 2 . 1 Ballistic Cannon . | . . . Launcher . | . . . Special Weapon . | . . . Impact Weapon . | . . . Slashing Weapon . | . . . Piercing Weapon . | . . . Special Melee Weapon . | . . . Unidentified Prototypes . | . . . Parts Lost 9 | . . 9 Power 2 | . . 2 Propulsion 3 | . . 3 Utility 2 | . . 2 Weapon 2 | . . 2 Highest Loss Streak 9 | . . 9 To Critical Strikes . | . . . Average Slot Usage (%) 88 | . 85 91 Engine 13 | . 14 13 Treads 27 | . 28 26 Device 5 | . . 12 Storage 7 | . 14 . Protection 4 | . . 10 Energy Gun 17 | . 8 27 Ballistic Gun 10 | . 19 . Peak Build Rating 14 | 6 6 14 Average Rating 7 | 5 5 10 On Entrance 4 | . 6 6 Naked Turns . | . . . Heaviest Build 17 | 12 12 17 Greatest Support 40 | 40 40 40 Greatest Overweight (x) . | . . . Average Overweight (x) . | . . . Largest Inventory Capacity 8 | 8 8 5 Average Capacity 6 | 7 8 5 Most Carried 6 | 2 6 5 Average Carried 3 | . 3 4 Final Capacity 8 | 8 8 5 Final Carried 5 | 2 5 2 Class Distribution -------------------- 100% | Mutant Dominant Class ---------------- Mutant | -10/Materials Mutant | -10/Subcaves Resources | -11 -10 -10 ----------- Run | Yrd Mat Sub Matter Collected 402 | 291 66 45 Remotely . | . . . Salvage Created 481 | 149 230 102 Parts 38 | 11 19 8 Haulers Intercepted 1 | . 1 . Recyclers Shooed . | . . . Parts Field Recycled . | . . . Retrieved Matter . | . . . Parts Self-Destructed 11 | . . 11 Prevented . | . . . Kills | -11 -10 -10 ------- Run | Yrd Mat Sub Combat Hostiles Destroyed 11 | . 6 5 Guns 11 | . 6 5 Classes Destroyed 6 | 2 3 1 Tunneler 3 | 3 . . Hauler 1 | . 1 . Recycler 1 | 1 . . Swarmer 7 | . 3 4 Grunt 3 | . 3 . Subdweller 1 | . . 1 Best Kill Streak 4 | 3 3 4 Combat Bots Only 4 | . 3 4 Max Kills in Single Turn 1 | 1 1 1 Gunslinging . | . . . Exploded . | . . . Melee . | . . . Uniques/NPCs Destroyed . | . . . Combat | -11 -10 -10 -------- Run | Yrd Mat Sub Hostile Shots Fired 104 | . 31 73 Missed 18 | . 4 14 Damage Taken 1292 | . 319 973 Core 265 | . 20 245 Absorbed by Shields . | . . . Ignored by Resistances 62 | . . 62 Core Remaining (%) 100 | 100 . . Volleys Fired 69 | 16 28 25 Largest 2 | 2 2 2 Hottest 110 | 40 60 110 Shots Fired 131 | 31 56 44 Gun 131 | 31 56 44 Cannon . | . . . Launcher . | . . . Special . | . . . Kinetic 82 | 31 46 5 Thermal 49 | . 10 39 Explosive . | . . . Electromagnetic . | . . . Robot Hit Streak 14 | 8 14 14 Robot Miss Streak 2 | 1 1 2 Penetration Max . | . . . Secondary Targets 3 | . . 3 Max Gunslinging Chain 1 | . . 1 Shots Hit Robots 101 | 22 45 34 Core Hits 30 | 7 15 8 Critical Kills . | . . . Critical Parts Destroyed . | . . . Critical Strikes 3 | . . 3 Burn 3 | . . 3 Melee Attacks . | . . . Impact . | . . . Slashing . | . . . Piercing . | . . . Sneak Attacks . | . . . Combat Hostiles . | . . . Follow-up Attacks . | . . . Damage Inflicted 1166 | 181 378 607 Guns 1166 | 181 378 607 Cannons . | . . . Explosions . | . . . Melee . | . . . Ramming . | . . . Kinetic 507 | 181 289 37 Thermal 659 | . 89 570 Explosive . | . . . Electromagnetic . | . . . Impact . | . . . Slashing . | . . . Piercing . | . . . Highest Corruption . | . . . Average Corruption . | . . . Corruption Purged . | . . . Corruption Blocked . | . . . Overload Shots . | . . . Overflow Damage . | . . . Projectiles . | . . . Explosions . | . . . Melee . | . . . Knockbacks . | . . . Impact . | . . . Kinetic . | . . . Secondary . | . . . Self-Inflicted Damage . | . . . Shots . | . . . Rammed . | . . . Targets Rammed . | . . . Kicked . | . . . Crushed . | . . . Highest Temperature 43 | . 43 42 Average Temperature 19 | . 18 19 Received Heat Transfer 333 | . 177 156 Siege Activations . | . . . Robots Corrupted . | . . . Combat Hostiles . | . . . Parts Fried . | . . . Impact Corruptions . | . . . Robots Melted . | . . . Combat Hostiles . | . . . Parts Melted . | . . . Heat Transferred 1352 | . 200 1152 Parts Sabotaged . | . . . Parts Stolen . | . . . Parts Stripped . | . . . Power Chain Reactions . | . . . Alert | -11 -10 -10 ------- Run | Yrd Mat Sub Peak Influence 120 | 20 120 . Initial 13 | . 13 . Average 49 | 7 62 . Maximum Alert Level . | . . . Low Security (%) 100 | 100 100 . Level 1 . | . . . Level 2 . | . . . Level 3 . | . . . Level 4 . | . . . Level 5 . | . . . High Security . | . . . Max Security . | . . . Squads Dispatched . | . . . Investigation . | . . . Extermination . | . . . Reinforcement . | . . . Assault . | . . . Garrison . | . . . Intercept . | . . . Searches Triggered . | . . . Construction Impeded . | . . . Haulers Reinforced . | . . . Active Scanning Responses . | . . . Cargo Convoy Interrupts . | . . . Stealth | -11 -10 -10 --------- Run | Yrd Mat Sub Distress Signals 1 | . 1 . Communications Jammed . | . . . Distress Signals . | . . . Times Spotted 21 | . 12 9 Peak Tracking Total 6 | . 5 6 Tactical Retreats 3 | . 2 1 Traps | -11 -10 -10 ------- Run | Yrd Mat Sub Traps Triggered . | . . . Indirectly . | . . . Trap Hack Attempts . | . . . Triggered . | . . . Disarmed . | . . . Reprogrammed . | . . . Reused . | . . . Traps Extracted . | . . . Installed . | . . . Triggered . | . . . Machines | -11 -10 -10 ---------- Run | Yrd Mat Sub Machines Disabled . | . . . Max in Single Turn . | . . . Machines Repaired . | . . . Machines Dismantled . | . . . Machines Sabotaged . | . . . Overloaded Fab Kills . | . . . Hacking | -11 -10 -10 --------- Run | Yrd Mat Sub Machines Accessed 1 | . 1 . Terminals 1 | . 1 . Fabricators . | . . . Repair Stations . | . . . Recycling Units . | . . . Scanalyzers . | . . . Garrison Access . | . . . Total Hacks 3 | . 3 . Successful 3 | . 3 . Failed . | . . . Catastrophic . | . . . Database Lockouts . | . . . Manual . | . . . Terminals 3 | . 3 . Fabricators . | . . . Repair Stations . | . . . Recycling Units . | . . . Scanalyzers . | . . . Garrison Access . | . . . Terminal Hacks 3 | . 3 . Prototype ID Bank 1 | . 1 . Emergency Access Points 1 | . 1 . Hauler Manifests 1 | . 1 . Fabricator Hacks . | . . . Repair Station Hacks . | . . . Recycling Unit Hacks . | . . . Scanalyzer . | . . . Garrison Access Hacks . | . . . Unauthorized Hacks . | . . . Terminals . | . . . Fabricators . | . . . Repair Stations . | . . . Recycling Units . | . . . Scanalyzers . | . . . Garrison Access . | . . . Data Cores Recovered . | . . . Used . | . . . Hacking Detections 1 | . 1 . Full Trace Events . | . . . Feedback Events . | . . . Feedback Blocked . | . . . Robot Schematics Acquired . | . . . Robots Built . | . . . Authchips . | . . . Time . | . . . Total Robot Build Rating . | . . . Part Schematics Acquired . | . . . Parts Built . | . . . Authchips . | . . . Time . | . . . Total Part Build Rating . | . . . Parts Repaired . | . . . Time . | . . . Parts Recycled . | . . . Recycled Matter . | . . . Retrieved Matter . | . . . Retrieved Components . | . . . Parts Scanalyzed . | . . . Part Schematics Acquired . | . . . Parts Damaged . | . . . Bothacking | -11 -10 -10 ------------ Run | Yrd Mat Sub Used RIF Installer . | . . . Robots Hacked . | . . . Non-combat . | . . . Combat . | . . . Robot Hacks Applied . | . . . Relay Couplers Released . | . . . Fabnet Peak Effective % . | . . . Robots Rewired . | . . . Allies Hacked . | . . . Hacks Repelled . | . . . Allies | -11 -10 -10 -------- Run | Yrd Mat Sub Total Allies . | . . . Largest Group . | . . . Highest-Rated Group . | . . . Highest-Rated Ally . | . . . Total Orders . | . . . Ally Attacks . | . . . Total Damage . | . . . Kills . | . . . Allies Corrupted . | . . . Allies Melted . | . . . Intel | -11 -10 -10 ------- Run | Yrd Mat Sub Robot Analysis Total . | . . . Derelict Logs Recovered 1 | . . 1 Drone Launches . | . . . Drone Recoveries . | . . . Exploration | -11 -10 -10 ------------- Run | Yrd Mat Sub Turns Passed 1022 | 149 465 408 Spaces Moved 489 | 63 222 204 Core 2 | 2 . . Treads 487 | 61 222 204 Legs . | . . . Wheels . | . . . Hover . | . . . Flight . | . . . Fastest Speed 50 | 50 160 160 Average Speed 159 | 156 160 160 Slowest Speed 160 | 160 160 160 Overloaded Moves . | . . . Propulsion Burnouts . | . . . Robots Hopped . | . . . Cave-ins Triggered . | . . . Exploration Rate (%) 25 | 5 47 24 Regions Visited 2 Branch Regions 1 Pre-discovered Areas . | . . . Known Exits Taken . | . . . Unknown Exits Taken 2 | 1 1 . Scrap Searched 1 | . . 1 Spaces Dug . | . . . Terrain Destroyed 1 | . . 1 Melee . | . . . Projectile 1 | . . 1 AOE . | . . . Terrain Rammed . | . . . Walls Destroyed . | . . . Machines Disabled . | . . . Actions | -11 -10 -10 --------- Run | Yrd Mat Sub Total 613 | 86 286 241 Wait 31 | . 29 2 Move 487 | 62 221 204 Hop . | . . . Pick Up 5 | 2 3 . Fast Attach 9 | 6 1 2 Attach 4 | . . 4 Detach 1 | . 1 . Swap 3 | . 1 2 Drop 4 | . 2 2 Fire 69 | 16 28 25 Melee . | . . . Ram . | . . . Kick . | . . . Crush . | . . . Escape Stasis . | . . . Rewire . | . . . Trap . | . . . Miscellaneous . | . . . Route ------- -11/Scrapyard -10/Materials (discovered 4 exits: [*Mat] / [*Min x2] / [*Sub]) -10/Subcaves (discovered 1 exit: [*Rec]) History --------- Turn | Location | Event 9 | -11/Scrapyard | Discovered new exit (range 15) 150 | -11/Scrapyard | Entered Materials 150 | -10/Materials | Discovered new exit (range 7) 303 | -10/Materials | Build established: Mutant 414 | -10/Materials | Discovered new exit (range 12) 452 | -10/Materials | Discovered new exit (range 8) 612 | -10/Materials | Discovered new exit (range 3) 615 | -10/Materials | Entered Subcaves 627 | -10/Subcaves | A swath of the cavern ceiling suddenly collapsed 688 | -10/Subcaves | Shifting Twisted Machinery released Mak. Kinetic Plating 745 | -10/Subcaves | Learned 4 Materials zone layouts 807 | -10/Subcaves | Shifting Twisted Machinery released Mak. Spear 814 | -10/Subcaves | Shifting Twisted Machinery released Mak. Laser 847 | -10/Subcaves | Discovered new exit (range 11) 977 | -10/Subcaves | A Subdweller sparked back to life 977 | -10/Subcaves | A Subdweller sparked back to life 977 | -10/Subcaves | A Subdweller sparked back to life 1014 | -10/Subcaves | Core integrity fell below 50% 1018 | -10/Subcaves | Core integrity fell below 20% 1023 | -10/Subcaves | Destroyed by 20-OMN(R) with Subdweller Machine Gun Last Messages --------------- 00983_ Z9-DMG(R) overheating. 00989_ Z9-DMG(R) suffers critical hit (Burn). 00990_ Lgt. Treads destroyed. 00990_ Lgt. Ion Engine destroyed. 00993_ Lgt. Treads destroyed. 00995_ Critical hit (Destroy). 00996_ Z9-DMG(R) affixes Scrap Shield Fragment to Scrap Shield. 01000_ Lgt. Treads destroyed. 01000_ Z9-DMG(R) destroyed. 01000_ Switching to secondary target: U7-NJO(R). 01000_ U7-NJO(R) suffers critical hit (Burn). 01006_ Ion Engine destroyed. 01007_ U7-NJO(R) affixes Scrap Shield Fragment to Scrap Shield. 01011_ Mak. Laser destroyed. 01012_ U7-NJO(R) affixes Scrap Shield Fragment to Scrap Shield. 01015_ Mak. Kinetic Plating destroyed. 01021_ Sub. Laser destroyed. Map ----- +----------------------------------------------------+ | ?????????????????????????????????????????????????? | | ?????????????????????????????????????????????????? | | ?????????????????????????????????????????????????? | | ?????????????????????????????????????????????????? | | ?????????????????????????????????????????????????? | | ??????????# ????????????????????????????????????? | | ?????? ### ???????????????????????????????????? | | ????? ???????????????????????????????????? | | ????? ???????????????????????????????????? | | ?????? ???????????????????????????????????? | | ??????? ????????? ?????????????????????????? | | ??????? #???????# ????????????????????????? | | ???????? ##??????# ????????????????????????? | | ???##???? ???????# ???????????????????????? | | #### ###?# ???????# ???????????????????????? | | ## #??????## ???????????????????????? | | ####???# ???????????????????????? | | ??# #??## ???????????????????????? | | ???## #???# #???????????????????????? | | ??## #????# ###?????????????????????? | | ??# ##????# ######????????????????? | | ??## ##?????? ##???????????????? | | ##?### #?# ????? #???????????????? | | # ##?## #?# ?###?# #???????????????? | | ### #??# # <## #???????????????? | | # #### &@ #??????????????? | | ## ## < R% # #?????????? | | ## ### ### =! #??# #?????????? | | ## ## #??????#< < R<#????? #?????????? | | ### ## ######## # <